bitfinex/quotes_SOLUSD_20240624
["timestamp","ask_amount","ask_price","bid_price","bid_amount"]
[1719193510023,7.8561,127.29,127.23,7.8594]
[1719193510224,5.1068,127.31,127.22,0.17]
[1719193510428,8.6731803,127.32,127.27,7.8572]
[1719193510904,0.8188803,127.32,127.27,7.8572]
[1719193511106,0.8188803,127.32,127.28,7.8566]
[1719193511304,0.8188803,127.32,127.29,7.8558]
[1719193511542,0.8188803,127.32,127.3,7.8553]
[1719193511838,0.8188803,127.32,127.27,6.5435]
[1719193512137,0.8188803,127.32,127.3,7.8553]
[1719193512636,0.8188803,127.32,127.29,7.8557]
[1719193513017,0.8188803,127.32,127.31,7.8548]
[1719193513340,0.8188803,127.32,127.28,19.8105]
[1719193513513,0.8188803,127.32,127.29,45.0]
[1719193513910,0.8188803,127.32,127.3,0.34]
[1719193514622,0.8188803,127.32,127.29,45.0]
[1719193514932,0.8188803,127.32,127.28,7.8565]
[1719193515115,0.8188803,127.32,127.27,7.857]
[1719193515309,0.8188803,127.32,127.24,158.9418]
[1719193515529,0.8188803,127.32,127.25,119.6448]
[1719193515734,0.8188803,127.32,127.23,22.8931]
[1719193515915,0.8188803,127.32,127.23,122.8931]
[1719193516239,0.8188803,127.32,127.26,19.6434]
[1719193516406,0.8188803,127.32,127.31,7.8548]
[1719193516613,0.8188803,127.32,127.31,27.4919]
[1719193516812,0.8188803,127.32,127.31,7.8548]
[1719193517338,0.8188803,127.32,127.31,53.1948]
[1719193520236,0.8188803,127.32,127.31,45.34]
[1719193520538,0.8188803,127.32,127.31,45.17]
[1719193520736,0.8188803,127.32,127.31,45.0]
[1719193520954,0.8188803,127.32,127.25,7.8519]
[1719193521246,0.8188803,127.32,127.3,7.855]
[1719193521451,0.8188803,127.32,127.26,100.0]
[1719193521836,0.8188803,127.32,127.29,7.8559]
[1719193522234,0.8188803,127.32,127.25,19.6461]
[1719193522561,0.8188803,127.32,127.24,7.8587]
[1719193522562,7.8554,127.3,127.24,7.8587]
[1719193522717,7.8554,127.3,127.25,7.8584]
[1719193523415,7.8554,127.3,127.21,19.6521]
[1719193524229,7.8554,127.3,127.25,7.8584]
[1719193526053,0.8188803,127.32,127.26,7.8578]
[1719193526347,0.8188803,127.32,127.27,7.8569]
[1719193526918,0.8188803,127.32,127.26,19.6446]
[1719193527125,0.8188803,127.32,127.27,52.857]
[1719193527422,0.8188803,127.32,127.25,0.34]
[1719193527423,8.6731803,127.32,127.26,7.8578]
[1719193527621,8.6731803,127.32,127.27,7.8569]
[1719193528045,8.6731803,127.32,127.26,7.8576]
[1719193528955,0.8188803,127.32,127.27,7.8573]
[1719193529547,8.6730803,127.32,127.27,7.8573]
[1719193530748,7.8548,127.31,127.26,7.8576]
[1719193532153,0.8188803,127.32,127.31,7.8548]
[1719193532341,0.8188803,127.32,127.31,52.8548]
[1719193532945,0.8188803,127.32,127.31,45.0]
[1719193533145,0.8188803,127.32,127.31,7.8548]
[1719193534455,0.8188803,127.32,127.31,52.8548]
[1719193534654,0.8188803,127.32,127.31,53.0248]
[1719193534949,0.8188803,127.32,127.31,53.1948]
[1719193538346,0.8188803,127.32,127.31,52.8548]
[1719193539376,0.8188803,127.32,127.31,53.0248]
[1719193539676,0.8188803,127.32,127.31,53.1948]
[1719193542559,0.8188803,127.32,127.31,253.1948]
[1719193543856,7.8483,127.42,127.37,7.851]
[1719193544380,7.8481,127.42,127.37,7.851]
[1719193544583,7.8487,127.41,127.36,7.8516]
[1719193544767,7.8487,127.41,127.37,45.0]
[1719193547370,7.8483,127.42,127.37,52.851]
[1719193548046,12.954,127.44,127.37,45.0]
[1719193548364,7.8475,127.43,127.38,7.8503]
[1719193549476,1.6375803,127.45,127.35,0.17]
[1719193549477,20.3075803,127.45,127.35,0.17]
[1719193549656,7.8492,127.4,127.35,53.1921]
[1719193549850,20.3075803,127.45,127.35,53.1921]
[1719193549851,7.849,127.41,127.35,53.1921]
[1719193550052,7.8493,127.4,127.35,7.8521]
[1719193550274,7.8488,127.41,127.36,7.8517]
[1719193550957,20.3075803,127.45,127.34,15.7435]
[1719193551158,7.8492,127.41,127.35,7.8521]
[1719193551371,7.8492,127.41,127.36,7.8517]
[1719193551757,7.8494,127.4,127.35,7.852]
[1719193551965,7.8488,127.41,127.36,7.8517]
[1719193552270,7.8482,127.42,127.37,7.8511]
[1719193552885,7.8477,127.43,127.37,7.8511]
[1719193553057,20.3075803,127.45,127.39,7.8495]
[1719193553058,7.8472,127.44,127.39,7.8495]
[1719193553386,7.8471,127.44,127.39,7.8496]
[1719193553557,7.8514,127.37,127.31,7.8545]
[1719193553761,7.8514,127.37,127.32,7.8541]
[1719193553955,7.8507,127.38,127.3,100.0]
[1719193554180,7.8503,127.39,127.33,7.8535]
[1719193554362,7.8495,127.4,127.3,100.0]
[1719193554572,7.8495,127.4,127.34,7.8523]
[1719193554783,7.8495,127.4,127.35,7.8521]
[1719193554980,5.9255,127.43,127.29,100.0]
[1719193554981,7.8481,127.42,127.36,7.8512]
[1719193555284,7.8481,127.42,127.37,45.0]
[1719193556669,5.9255,127.43,127.31,19.637]
[1719193556857,7.8497,127.4,127.35,7.8523]
[1719193557059,7.8484,127.42,127.36,7.8516]
[1719193557486,7.8488,127.41,127.36,7.8516]
[1719193557785,7.8488,127.41,127.35,7.8521]
[1719193558485,7.8488,127.41,127.32,139.6343]
[1719193558674,7.8488,127.41,127.36,7.8517]
[1719193558986,13.7734,127.43,127.37,7.8509]
[1719193559201,5.1068,127.43,127.38,45.0]
[1719193559483,5.1068,127.43,127.36,7.8513]
[1719193559673,7.8483,127.42,127.36,7.8513]
[1719193560267,12.9543,127.43,127.37,45.0]
[1719193560468,12.9543,127.43,127.38,7.8501]
[1719193560663,12.9543,127.43,127.37,52.8509]
[1719193561267,0.8188803,127.45,127.4,7.8492]
[1719193561518,8.6653803,127.45,127.4,7.8492]
[1719193561981,8.6653803,127.45,127.39,7.8496]
[1719193562288,0.8188803,127.45,127.41,7.8486]
[1719193562485,0.8188803,127.45,127.42,45.0]
[1719193562894,8.6651803,127.45,127.41,45.0]
[1719193563388,0.8188803,127.45,127.41,45.0]
[1719193563574,0.8188803,127.45,127.41,52.8486]
[1719193564192,0.8188803,127.45,127.41,51.0825]
[1719193564497,0.8188803,127.45,127.42,0.34]
[1719193565392,0.8188803,127.45,127.44,7.8468]
[1719193565579,0.8188803,127.45,127.44,52.8468]
[1719193565783,0.8188803,127.45,127.44,53.1868]
[1719193570578,0.8188803,127.45,127.44,73.1868]
[1719193571693,0.8188803,127.45,127.43,7.8473]
[1719193571895,0.8188803,127.45,127.43,7.8474]
[1719193572290,0.8188803,127.45,127.44,7.8468]
[1719193572486,0.8188803,127.45,127.41,6.0825]
[1719193572808,0.8188803,127.45,127.44,7.8468]
[1719193573788,0.8188803,127.45,127.44,53.1868]
[1719193574389,0.8188803,127.45,127.44,53.0168]
[1719193575208,0.8188803,127.45,127.44,45.0]
[1719193575795,0.8188803,127.45,127.44,7.8468]
[1719193576419,0.8188803,127.45,127.44,8.0168]
[1719193576918,0.8188803,127.45,127.43,7.8472]
[1719193577092,7.8472,127.44,127.35,6.5706]
[1719193577417,0.8188803,127.45,127.41,7.8485]
[1719193577710,0.8188803,127.45,127.44,7.8468]
[1719193578298,0.8188803,127.45,127.44,45.0]
[1719193578708,0.8188803,127.45,127.44,52.8468]
[1719193579293,8.03e-05,127.45,127.44,273.1868]
[1719193579605,18.66,127.56,127.44,273.1868]
[1719193579606,37.79382227,127.56,127.5,7.8429]
[1719193580107,7.8401,127.55,127.5,7.8429]
[1719193581390,5.1068,127.56,127.48,19.6095]
[1719193581591,5.1068,127.56,127.49,45.34]
[1719193582596,5.1068,127.56,127.42,6.5706]
[1719193582597,18.66,127.55,127.42,6.5706]
[1719193582804,18.66,127.55,127.46,7.8453]
[1719193583122,0.17,127.54,127.43,39.6179]
[1719193583625,0.17,127.54,127.46,7.8453]
[1719193583826,0.34,127.54,127.46,7.8453]
[1719193583993,0.34,127.54,127.42,6.5706]
[1719193583994,18.66,127.52,127.42,6.5706]
[1719193584197,18.66,127.52,127.43,7.8471]
[1719193584418,18.66,127.52,127.42,19.6197]
[1719193585121,0.17,127.53,127.41,115.0]
[1719193585438,19.0,127.53,127.41,115.0]
[1719193585604,19.0,127.53,127.46,7.8452]
[1719193585804,23.7668,127.56,127.47,52.8446]
[1719193586005,0.34,127.55,127.47,52.8446]
[1719193586321,0.34,127.55,127.47,45.0]
[1719193586612,0.34,127.55,127.46,7.8453]
[1719193586613,45.34,127.55,127.46,7.8452]
[1719193586823,7.8449,127.48,127.42,7.8474]
[1719193586990,7.8449,127.48,127.39,45.5079]
[1719193587189,7.8449,127.48,127.42,7.8477]
[1719193587590,7.844,127.49,127.43,7.8473]
[1719193587826,7.6480473,127.54,127.45,7.8456]
[1719193588025,0.34,127.53,127.39,245.5079]
[1719193588204,45.34,127.53,127.4,20.0]
[1719193588830,7.8441,127.49,127.43,7.8471]
[1719193589201,7.8441,127.49,127.44,7.8467]
[1719193589410,7.8441,127.49,127.44,52.8467]
[1719193590010,7.8433,127.5,127.45,7.8459]
[1719193590326,5.9255,127.54,127.46,45.0]
[1719193590627,5.9255,127.54,127.47,7.8448]
[1719193590810,7.8418,127.53,127.47,7.8448]
[1719193591127,7.8419,127.52,127.47,7.8448]
[1719193592009,7.8415,127.53,127.47,7.8448]
[1719193592321,13.7664,127.54,127.49,7.8436]
[1719193592495,12.9477,127.54,127.49,7.8436]
[1719193592901,7.8409,127.54,127.49,7.8436]
[1719193593126,7.8403,127.55,127.49,7.8436]
[1719193593528,7.8407,127.54,127.49,7.8436]
[1719193593898,5.9256803,127.57,127.5,7.8426]
[1719193594230,5.9256803,127.57,127.5,7.8428]
[1719193594429,5.9256803,127.57,127.51,45.0]
[1719193594603,7.8398,127.56,127.51,45.0]
[1719193595346,7.8401,127.55,127.51,45.0]
[1719193595526,5.9256803,127.57,127.48,7.8438]
[1719193595699,7.841,127.54,127.49,52.8436]
[1719193595902,7.8402,127.55,127.49,52.8436]
[1719193596738,7.8408,127.54,127.49,52.8436]
[1719193597419,5.9256803,127.57,127.47,7.8448]
[1719193597631,45.34,127.56,127.43,6.0668]
[1719193597829,7.8421,127.52,127.47,7.8445]
[1719193598035,7.8426,127.51,127.44,20.0]
[1719193598836,7.8426,127.51,127.46,7.8451]
[1719193599063,7.8426,127.51,127.47,45.0]
[1719193599836,7.8421,127.52,127.47,45.0]
[1719193600011,7.8421,127.52,127.47,52.8448]
[1719193600212,7.8415,127.53,127.47,52.8448]
[1719193601747,7.8415,127.53,127.48,7.8443]
[1719193601940,7.8409,127.54,127.49,7.8436]
[1719193602136,7.8409,127.54,127.47,45.0]
[1719193602450,5.9256803,127.57,127.5,7.8428]
[1719193603145,0.17,127.56,127.49,7.8434]
[1719193603354,7.8416,127.53,127.48,7.8442]
[1719193603559,0.17,127.56,127.46,52.8454]
[1719193603560,7.8425,127.51,127.46,52.8454]
[1719193603851,0.17,127.56,127.46,52.8454]
[1719193603852,7.8415,127.53,127.47,7.8448]
[1719193604218,7.8415,127.53,127.48,7.8443]
[1719193604945,7.8419,127.52,127.47,7.8447]
[1719193605327,7.8415,127.53,127.47,7.8447]
[1719193605654,7.8415,127.53,127.47,7.8445]
[1719193606031,7.8415,127.53,127.48,45.0]
[1719193606425,7.8409,127.54,127.48,52.8441]
[1719193606939,7.8409,127.54,127.49,7.8437]
[1719193607618,7.8403,127.55,127.49,7.8437]
[1719193608054,7.8403,127.55,127.5,7.8429]
[1719193608419,7.8403,127.55,127.49,7.8434]
[1719193608648,7.8403,127.55,127.48,45.0]
[1719193608649,7.8396,127.56,127.51,7.8424]
[1719193608957,5.9256803,127.57,127.48,60.4653]
[1719193609125,13.7647803,127.57,127.52,7.8415]
[1719193609625,5.9256803,127.57,127.49,0.34]
[1719193609958,5.9256803,127.57,127.5,7.843]
[1719193609959,7.8397,127.56,127.5,7.843]
[1719193610252,7.8397,127.56,127.51,52.8424]
[1719193610558,0.8188803,127.57,127.52,6.0357]
[1719193610746,0.8188803,127.57,127.53,52.8407]
[1719193611938,0.8188803,127.57,127.54,7.8405]
[1719193612263,0.8188803,127.57,127.56,7.8394]
[1719193612619,0.8188803,127.57,127.56,52.8394]
[1719193613953,0.3188803,127.57,127.56,52.8394]
[1719193615160,0.3188803,127.57,127.53,0.17]
[1719193615326,0.3188803,127.57,127.49,19.6079]
[1719193615537,0.3188803,127.57,127.52,7.8416]
[1719193616021,0.17,127.56,127.46,6.2082]
[1719193616219,7.8409,127.54,127.48,7.8439]
[1719193616424,7.8413,127.53,127.48,7.8439]
[1719193616650,7.8413,127.53,127.46,6.2082]
[1719193616858,1.1587,127.56,127.43,18.64]
[1719193617065,7.8461,127.46,127.4,7.8491]
[1719193617354,0.8187,127.49,127.38,42.395]
[1719193617355,7.8451,127.47,127.38,42.395]
[1719193617523,7.8463,127.45,127.38,22.769]
[1719193617718,0.17,127.48,127.38,22.769]
[1719193617948,7.8459,127.46,127.4,7.8488]
[1719193618826,7.8462,127.45,127.4,7.8488]
[1719193619052,7.8458,127.46,127.4,7.8488]
[1719193619446,0.34,127.48,127.4,7.8488]
[1719193619837,7.8457,127.46,127.4,7.8488]
[1719193620627,7.8457,127.46,127.38,22.769]
[1719193620938,7.8457,127.46,127.39,45.0]
[1719193621143,7.8457,127.46,127.4,7.8489]
[1719193621723,7.8457,127.46,127.41,7.8486]
[1719193622135,7.8451,127.47,127.41,7.8486]
[1719193622952,7.8456,127.46,127.4,7.849]
[1719193623163,7.8462,127.45,127.4,7.849]
[1719193623458,7.8464,127.45,127.39,45.0]
[1719193624929,0.34,127.48,127.38,22.769]
[1719193625146,7.8484,127.42,127.36,7.8514]
[1719193625457,7.8484,127.42,127.36,7.8513]
[1719193625458,7.8483,127.42,127.36,7.8513]
[1719193625856,1.8925473,127.48,127.36,200.0]
[1719193626058,7.8453,127.47,127.41,7.8484]
[1719193626568,5.1068,127.5,127.42,19.6186]
[1719193626870,7.8442,127.49,127.43,52.8472]
[1719193627543,6.21082264,127.52,127.45,7.8458]
[1719193627864,7.8431,127.5,127.45,7.8458]
[1719193628045,5.9255,127.53,127.46,7.8455]
[1719193628046,7.8421,127.52,127.46,7.8455]
[1719193628238,7.8421,127.52,127.47,52.8449]
[1719193628438,7.8421,127.52,127.47,7.8449]
[1719193628839,12.9482,127.53,127.47,7.8449]
[1719193629160,8.664,127.56,127.48,7.8441]
[1719193629457,0.8187,127.56,127.48,7.8441]
[1719193629641,7.8409,127.54,127.48,7.8439]
[1719193629842,7.06337471,127.56,127.44,119.6158]
[1719193630046,7.8416,127.53,127.47,7.8445]
[1719193630255,7.8419,127.52,127.48,45.0]
[1719193630844,7.8409,127.54,127.48,45.0]
[1719193631062,7.8403,127.55,127.49,7.8436]
[1719193631664,7.8413,127.53,127.48,52.8443]
[1719193631968,7.8409,127.54,127.48,52.8443]
[1719193632259,0.8187,127.56,127.48,45.0]
[1719193632463,7.8414,127.53,127.48,7.8439]
[1719193632642,7.8419,127.52,127.47,52.8447]
[1719193632849,0.17,127.53,127.45,7.8462]
[1719193633052,7.8429,127.51,127.45,7.8462]
[1719193633665,0.34,127.53,127.44,7.8468]
[1719193633877,7.8437,127.5,127.44,7.8468]
[1719193634165,7.8453,127.47,127.42,7.848]
[1719193634367,0.17,127.49,127.41,7.8486]
[1719193634368,0.9887,127.49,127.41,7.8486]
[1719193634667,46.1587,127.49,127.4,7.849]
[1719193634969,46.1587,127.49,127.39,15.8698]
[1719193634970,7.8466,127.45,127.39,23.7194]
[1719193635153,7.8456,127.46,127.41,7.8481]
[1719193635348,1.1587,127.49,127.39,15.8698]
[1719193635555,7.847,127.44,127.39,15.8698]
[1719193635870,7.8476,127.43,127.39,15.8698]
[1719193636083,7.8476,127.43,127.38,6.2859]
[1719193637475,67.9387,127.49,127.38,6.2859]
[1719193637772,67.9387,127.49,127.38,14.1362]
[1719193638269,67.9387,127.49,127.35,22.9982]
[1719193638473,7.8489,127.41,127.35,22.9982]
[1719193638768,67.9387,127.49,127.35,22.9982]
[1719193638769,7.8482,127.42,127.36,7.8513]
[1719193638975,67.9387,127.49,127.35,42.6291]
[1719193639146,7.848,127.43,127.37,7.851]
[1719193639352,7.848,127.43,127.38,7.8504]
[1719193640273,7.848,127.43,127.37,7.8508]
[1719193640660,7.8483,127.42,127.36,7.8516]
[1719193640856,0.17,127.44,127.35,30.8501]
[1719193641186,7.8493,127.4,127.35,30.8501]
[1719193641675,7.8489,127.41,127.35,30.8501]
[1719193641873,0.34,127.44,127.35,16.663]
[1719193642201,7.8502,127.39,127.34,7.8529]
[1719193643178,7.8502,127.39,127.33,7.8533]
[1719193643367,7.8505,127.38,127.33,7.8533]
[1719193644284,5.9255,127.43,127.26,22.4938]
[1719193644285,7.8549,127.31,127.26,22.4938]
[1719193644652,7.8549,127.31,127.26,16.0583]
[1719193645368,7.8549,127.31,127.26,23.916]
[1719193646060,7.8554,127.3,127.26,16.0583]
[1719193646276,7.8565,127.29,127.26,0.5]
[1719193647051,7.8573,127.27,127.26,0.5]
[1719193648959,8.1973,127.27,127.26,0.5]
[1719193651069,7.8573,127.27,127.26,0.5]
[1719193651388,7.8568,127.28,127.26,0.5]
[1719193652155,7.8573,127.27,127.26,0.5]
[1719193653076,8.1973,127.27,127.26,0.5]
[1719193653259,7.8573,127.27,127.26,0.5]
[1719193653979,8.1973,127.27,127.26,0.5]
[1719193654556,7.8573,127.27,127.26,0.5]
[1719193654868,8.1973,127.27,127.26,0.5]
[1719193655065,0.34,127.27,127.2,6.1939]
[1719193655365,0.34,127.27,127.19,0.10292923]
[1719193655366,7.8616,127.2,127.19,0.10292923]
[1719193655569,7.8642,127.16,127.13,0.8188803]
[1719193655788,7.8649,127.15,127.13,0.8188803]
[1719193656079,7.8653,127.14,127.13,0.8188803]
[1719193656259,45.17,127.19,127.05,22.3031]
[1719193656260,7.8666,127.12,127.05,22.3031]
[1719193656465,0.17,127.14,127.05,22.3031]
[1719193656665,0.17,127.15,127.06,7.8702]
[1719193656872,0.17,127.15,127.05,22.3031]
[1719193656873,7.8661,127.13,127.07,7.8695]
[1719193657079,7.8655,127.14,127.08,7.8689]
[1719193657374,7.8655,127.14,127.09,7.8683]
[1719193657580,8.0349,127.15,127.09,7.8683]
[1719193657959,7.8654,127.14,127.09,7.8683]
[1719193658159,8.0352,127.15,127.09,7.8683]
[1719193658354,45.17,127.19,127.07,19.6739]
[1719193658355,7.8643,127.16,127.07,19.6739]
[1719193658576,7.8638,127.17,127.11,7.867]
[1719193659295,5.1068,127.25,127.08,100.0]
[1719193659588,7.8629,127.18,127.12,7.8664]
[1719193659969,5.1068,127.25,127.12,7.8664]
[1719193660160,7.8647,127.15,127.09,0.17]
[1719193660361,7.8642,127.16,127.08,0.17]
[1719193660570,7.8647,127.16,127.08,45.34]
[1719193660769,7.8647,127.16,127.1,7.8678]
[1719193661289,7.8649,127.15,127.08,45.34]
[1719193661462,7.8636,127.17,127.08,45.34]
[1719193661662,1.8237639,127.24,127.08,45.34]
[1719193661663,7.8631,127.18,127.12,7.8663]
[1719193661860,7.8631,127.18,127.08,65.012]
[1719193661861,7.8602,127.23,127.17,7.8633]
[1719193662076,1.8237639,127.24,127.13,51.385]
[1719193662077,1.8237639,127.24,127.13,22.576]
[1719193662362,1.8237639,127.24,127.17,7.8633]
[1719193662770,5.1068,127.25,127.15,19.6603]
[1719193662970,5.1068,127.25,127.16,52.8638]
[1719193663177,5.1068,127.25,127.15,7.8644]
[1719193663676,5.1068,127.25,127.17,7.8634]
[1719193665289,5.1068,127.3,127.19,7.8621]
[1719193665497,5.1068,127.3,127.15,100.0]
[1719193665672,5.1068,127.3,127.18,19.6565]
[1719193666276,5.1068,127.3,127.19,45.0]
[1719193666482,5.1068,127.3,127.21,7.8606]
[1719193666674,7.8579,127.26,127.21,7.8606]
[1719193667187,11.52050106,127.3,127.22,7.8601]
[1719193667871,7.858,127.26,127.21,7.8607]
[1719193668085,7.858,127.26,127.21,7.8609]
[1719193668086,7.8581,127.26,127.21,7.8609]
[1719193668287,11.52050106,127.3,127.2,7.8615]
[1719193668594,11.52050106,127.3,127.18,19.6565]
[1719193668595,7.8577,127.27,127.21,7.8606]
[1719193669472,7.8579,127.26,127.21,7.8606]
[1719193669890,7.8574,127.27,127.22,7.8603]
[1719193671271,7.8575,127.27,127.22,7.86]
[1719193672286,7.8575,127.27,127.21,7.8607]
[1719193675809,7.8575,127.27,127.22,7.8603]
[1719193677277,7.8575,127.27,127.21,7.8607]
[1719193677602,0.17,127.28,127.16,19.83]
[1719193677772,0.17,127.28,127.13,150.32211964]
[1719193677773,0.17,127.28,127.17,20.0]
[1719193677979,7.8593,127.24,127.19,7.8621]
[1719193678179,7.8616,127.2,127.15,7.8645]
[1719193678509,7.8612,127.21,127.16,7.8641]
[1719193678876,7.8611,127.21,127.16,7.8639]
[1719193679306,7.86,127.23,127.18,7.8628]
[1719193679807,7.8588,127.25,127.2,7.8616]
[1719193680115,1.8237639,127.27,127.17,19.6572]
[1719193680408,7.8581,127.26,127.21,7.8605]
[1719193680975,11.52050106,127.3,127.18,45.34]
[1719193681202,7.8594,127.24,127.19,7.8618]
[1719193681373,13.34426496,127.3,127.19,45.0]
[1719193681575,13.34426496,127.3,127.22,7.8599]
[1719193681576,7.8575,127.27,127.22,7.8599]
[1719193682309,7.8579,127.26,127.21,7.8607]
[1719193682603,13.34426496,127.3,127.2,6.3422]
[1719193682909,13.34426496,127.3,127.21,45.0]
[1719193683090,7.857,127.28,127.23,7.8597]
[1719193683291,13.34426496,127.3,127.21,45.0]
[1719193683808,7.857,127.28,127.23,7.8597]
[1719193684586,7.8573,127.27,127.22,7.8601]
[1719193684912,1.8237639,127.3,127.27,7.8572]
[1719193685106,1.8237639,127.3,127.26,7.8577]
[1719193685311,1.8237639,127.3,127.27,7.8567]
[1719193685516,1.8237639,127.3,127.26,7.8576]
[1719193686418,1.8237639,127.3,127.22,19.6507]
[1719193686585,7.8564,127.29,127.24,7.859]
[1719193686786,7.8556,127.3,127.25,7.8584]
[1719193688794,11.51171074,127.33,127.26,7.8578]
[1719193688795,7.8551,127.31,127.26,7.8578]
[1719193689151,7.8551,127.31,127.22,19.6507]
[1719193689152,7.8555,127.3,127.25,7.8582]
[1719193689409,7.8556,127.3,127.25,7.8584]
[1719193691226,7.8551,127.31,127.26,7.8578]
[1719193695137,7.8532,127.34,127.29,7.8557]
[1719193695936,12.9585,127.36,127.31,7.8545]
[1719193696099,5.1068,127.36,127.26,58.9331]
[1719193696300,7.8536,127.33,127.29,7.8559]
[1719193696497,5.1068,127.36,127.29,7.8559]
[1719193696813,7.8534,127.34,127.29,7.8559]
[1719193697429,7.8536,127.33,127.28,7.8564]
[1719193697615,7.8536,127.33,127.25,0.17]
[1719193697616,7.8539,127.33,127.25,0.17]
[1719193697809,7.8539,127.33,127.28,7.8563]
[1719193698907,0.17,127.35,127.2,122.2036]
[1719193698908,0.17,127.35,127.2,22.2036]
[1719193699111,45.34,127.35,127.21,7.8607]
[1719193699451,7.8576,127.27,127.21,7.8605]
[1719193699608,7.8576,127.27,127.2,22.2036]
[1719193699806,7.8568,127.28,127.23,7.8597]
[1719193700521,7.8563,127.29,127.24,7.859]
[1719193700723,8.6742,127.3,127.25,7.8585]
[1719193700907,8.6742,127.3,127.26,7.8579]
[1719193700908,7.8555,127.3,127.26,7.8579]
[1719193701543,7.8555,127.3,127.25,7.8583]
[1719193701913,7.8543,127.32,127.27,7.8569]
[1719193702116,8.6729,127.33,127.28,7.8566]
[1719193702310,0.8187,127.33,127.24,19.6467]
[1719193702516,0.8187,127.33,127.22,100.0]
[1719193702517,7.853,127.34,127.27,19.643]
[1719193702727,7.8536,127.33,127.25,45.17]
[1719193703018,7.8543,127.32,127.27,7.857]
[1719193703234,7.8548,127.31,127.27,7.857]
[1719193703743,7.8545,127.32,127.27,7.857]
[1719193704320,7.855,127.31,127.26,7.8577]
[1719193704528,7.8557,127.3,127.25,7.8584]
[1719193705314,0.8187,127.3,127.2,41.8565]
[1719193705534,8.0265,127.29,127.24,7.8591]
[1719193705738,7.8567,127.28,127.23,7.8595]
[1719193705937,7.8567,127.28,127.24,7.8591]
[1719193706445,7.8567,127.28,127.23,7.8595]
[1719193706620,7.8573,127.27,127.23,7.8595]
[1719193707243,7.8569,127.28,127.23,7.8595]
[1719193708143,7.8563,127.29,127.24,7.859]
[1719193708540,7.8552,127.31,127.26,7.8578]
[1719193708843,5.1068,127.36,127.25,0.17]
[1719193709051,5.1068,127.36,127.24,165.34]
[1719193709251,7.8535,127.34,127.29,7.856]
[1719193709425,7.8536,127.33,127.28,7.8563]
[1719193711052,7.8542,127.32,127.27,7.857]
[1719193711214,7.8548,127.31,127.26,7.8577]
[1719193711418,7.8548,127.31,127.26,7.8575]
[1719193711955,7.8544,127.32,127.27,7.8572]
[1719193712742,5.1068,127.36,127.24,65.34]
[1719193712949,5.1068,127.36,127.29,7.856]
[1719193712950,7.8532,127.34,127.29,7.856]
[1719193713121,0.17,127.35,127.25,19.6451]
[1719193713440,7.8533,127.34,127.29,7.8557]
[1719193713858,5.1068,127.36,127.3,7.855]
[1719193714150,7.8531,127.34,127.29,7.8557]
[1719193716559,5.1068,127.36,127.2,22.2036]
[1719193716858,0.17,127.33,127.21,20.0]
[1719193717065,0.8187,127.3,127.2,22.2036]
[1719193717351,7.8575,127.27,127.22,7.8603]
[1719193717729,12.963,127.29,127.24,7.8591]
[1719193718145,5.1068,127.29,127.25,7.8585]
[1719193718716,5.1068,127.29,127.21,19.6511]
[1719193718921,7.857,127.28,127.23,7.8595]
[1719193719542,7.857,127.28,127.22,7.8601]
[1719193720757,12.963,127.29,127.24,7.859]